[Event "Titled Tuesday Blitz May 9 Early 2023"]
[White "Han, Yichen"]
[Black "Isanzhulov, Arystan"]
[WhiteFideId "1054430"]
[BlackFideId "13711644"]
[WhiteElo "2342"]
[BlackElo "2467"]
[Result "0-1"]
[Round "04"]
[TimeControl "180+2"]
[Date "2023.05.09"]
[WhiteClock "0:00:00"]
[BlackClock "0:00:16"]

1. d4 {[%clk 0:03:00]}  e6 {[%clk 0:02:43]} 2. c4 {[%clk 0:02:57]}  d5 {[%clk 0:02:36]} 3. Nf3 {[%clk 0:02:55]}  Nf6 {[%clk 0:02:36]} 4. g3 {[%clk 0:02:56]}  g6 {[%clk 0:02:35]} 5. Nc3 {[%clk 0:02:54]}  Bg7 {[%clk 0:02:35]} 6. cxd5 {[%clk 0:02:52]}  exd5 {[%clk 0:02:35]} 7. Bg2 {[%clk 0:02:53]}  O-O {[%clk 0:02:35]} 8. O-O {[%clk 0:02:50]}  Re8 {[%clk 0:02:27]} 9. Bf4 {[%clk 0:02:47]}  c6 {[%clk 0:02:26]} 10. Rb1 {[%clk 0:02:46]}  b5 {[%clk 0:02:23]} 11. a4 {[%clk 0:02:37]}  b4 {[%clk 0:02:23]} 12. Na2 {[%clk 0:02:37]}  a5 {[%clk 0:02:22]} 13. Nc1 {[%clk 0:02:38]}  Nbd7 {[%clk 0:02:00]} 14. Nb3 {[%clk 0:02:31]}  Nb6 {[%clk 0:01:56]} 15. Nc5 {[%clk 0:02:29]}  Nc4 {[%clk 0:01:49]} 16. b3 {[%clk 0:02:25]}  Na3 {[%clk 0:01:31]} 17. Rc1 {[%clk 0:02:19]}  Nh5 {[%clk 0:01:24]} 18. Ne5 {[%clk 0:02:11]}  Qf6 {[%clk 0:01:10]} 19. Be3 {[%clk 0:01:58]}  Qd6 {[%clk 0:01:05]} 20. Ncd3 {[%clk 0:01:52]}  Bb7 {[%clk 0:01:01]} 21. Qd2 {[%clk 0:01:34]}  Nf6 {[%clk 0:00:57]} 22. Bf4 {[%clk 0:01:30]}  Ne4 {[%clk 0:00:55]} 23. Bxe4 {[%clk 0:01:17]}  dxe4 {[%clk 0:00:55]} 24. Nc5 {[%clk 0:01:17]}  Ba6 {[%clk 0:00:31]} 25. Nxe4 {[%clk 0:01:06]}  Qd5 {[%clk 0:00:31]} 26. f3 {[%clk 0:00:42]}  Qxb3 {[%clk 0:00:31]} 27. Nc5 {[%clk 0:00:38]}  Qd5 {[%clk 0:00:26]} 28. e4 {[%clk 0:00:00]}  Qd6 {[%clk 0:00:16]} 0-1


[Site "https://www.chess.com"]

[Event "Titled Tuesday Blitz May 9 Early 2023"]
[White "Sethuraman, S.P."]
[Black "Al-Tarboush, Ward"]
[WhiteFideId "5021596"]
[BlackFideId "7601450"]
[WhiteElo "2543"]
[BlackElo "2265"]
[Result "0-1"]
[Round "04"]
[TimeControl "180+2"]
[Date "2023.05.09"]
[WhiteClock "0:00:08"]
[BlackClock "0:00:13"]

1. c4 {[%clk 0:03:00]}  c5 {[%clk 0:02:59]} 2. Nc3 {[%clk 0:03:00]}  Nc6 {[%clk 0:02:59]} 3. Nf3 {[%clk 0:03:00]}  e5 {[%clk 0:03:00]} 4. e3 {[%clk 0:03:00]}  Nf6 {[%clk 0:03:00]} 5. d4 {[%clk 0:02:59]}  e4 {[%clk 0:03:01]} 6. d5 {[%clk 0:02:59]}  exf3 {[%clk 0:02:57]} 7. dxc6 {[%clk 0:02:59]}  dxc6 {[%clk 0:02:35]} 8. Qxd8+ {[%clk 0:02:56]}  Kxd8 {[%clk 0:02:35]} 9. gxf3 {[%clk 0:02:56]}  g6 {[%clk 0:02:26]} 10. e4 {[%clk 0:02:51]}  Bg7 {[%clk 0:02:26]} 11. Bf4 {[%clk 0:02:45]}  Be6 {[%clk 0:02:10]} 12. O-O-O+ {[%clk 0:02:43]}  Ke8 {[%clk 0:02:08]} 13. h4 {[%clk 0:02:37]}  Rd8 {[%clk 0:02:05]} 14. Be2 {[%clk 0:02:35]}  Ke7 {[%clk 0:01:56]} 15. e5 {[%clk 0:02:27]}  Nh5 {[%clk 0:01:56]} 16. Bg5+ {[%clk 0:02:20]}  f6 {[%clk 0:01:55]} 17. Be3 {[%clk 0:02:20]}  b6 {[%clk 0:01:46]} 18. Rxd8 {[%clk 0:02:08]}  Rxd8 {[%clk 0:01:45]} 19. exf6+ {[%clk 0:02:06]}  Bxf6 {[%clk 0:01:46]} 20. Ne4 {[%clk 0:02:06]}  Bf5 {[%clk 0:01:34]} 21. Nxf6 {[%clk 0:02:05]}  Nxf6 {[%clk 0:01:35]} 22. Re1 {[%clk 0:01:55]}  Kf7 {[%clk 0:01:35]} 23. b3 {[%clk 0:01:45]}  Nd7 {[%clk 0:01:27]} 24. Rd1 {[%clk 0:01:44]}  Re8 {[%clk 0:01:26]} 25. Rd6 {[%clk 0:01:40]}  Nb8 {[%clk 0:01:05]} 26. f4 {[%clk 0:01:18]}  Re6 {[%clk 0:01:05]} 27. Rd8 {[%clk 0:01:18]}  Re8 {[%clk 0:01:05]} 28. Rd6 {[%clk 0:01:15]}  Re6 {[%clk 0:01:05]} 29. Rd2 {[%clk 0:01:14]}  Re8 {[%clk 0:01:03]} 30. h5 {[%clk 0:01:08]}  Re7 {[%clk 0:00:57]} 31. Bf3 {[%clk 0:01:07]}  Rd7 {[%clk 0:00:54]} 32. Re2 {[%clk 0:01:02]}  Rd6 {[%clk 0:00:50]} 33. Re1 {[%clk 0:01:02]}  Na6 {[%clk 0:00:50]} 34. a3 {[%clk 0:00:58]}  Nc7 {[%clk 0:00:43]} 35. hxg6+ {[%clk 0:00:58]}  hxg6 {[%clk 0:00:43]} 36. Rh1 {[%clk 0:00:58]}  Kg8 {[%clk 0:00:43]} 37. Rd1 {[%clk 0:00:45]}  Rxd1+ {[%clk 0:00:43]} 38. Kxd1 {[%clk 0:00:46]}  Bd7 {[%clk 0:00:43]} 39. Kd2 {[%clk 0:00:44]}  Ne6 {[%clk 0:00:41]} 40. Kc3 {[%clk 0:00:45]}  Kf7 {[%clk 0:00:41]} 41. Be4 {[%clk 0:00:39]}  Nd8 {[%clk 0:00:39]} 42. b4 {[%clk 0:00:28]}  cxb4+ {[%clk 0:00:40]} 43. axb4 {[%clk 0:00:29]}  Bf5 {[%clk 0:00:39]} 44. Bg2 {[%clk 0:00:28]}  Ke7 {[%clk 0:00:39]} 45. Kd4 {[%clk 0:00:28]}  Kd6 {[%clk 0:00:32]} 46. c5+ {[%clk 0:00:23]}  Ke6 {[%clk 0:00:23]} 47. Kc4 {[%clk 0:00:20]}  b5+ {[%clk 0:00:19]} 48. Kd4 {[%clk 0:00:20]}  a6 {[%clk 0:00:19]} 49. Kc3 {[%clk 0:00:20]}  Kd7 {[%clk 0:00:19]} 50. Bd4 {[%clk 0:00:20]}  Ne6 {[%clk 0:00:19]} 51. Be5 {[%clk 0:00:21]}  Nc7 {[%clk 0:00:11]} 52. Kd4 {[%clk 0:00:19]}  Ne6+ {[%clk 0:00:10]} 53. Kc3 {[%clk 0:00:19]}  Nd8 {[%clk 0:00:10]} 54. Bd6 {[%clk 0:00:19]}  Nb7 {[%clk 0:00:10]} 55. Be5 {[%clk 0:00:19]}  a5 {[%clk 0:00:11]} 56. bxa5 {[%clk 0:00:19]}  Nxa5 {[%clk 0:00:11]} 57. Kb4 {[%clk 0:00:18]}  Nc4 {[%clk 0:00:12]} 58. Bd4 {[%clk 0:00:18]}  Nd2 {[%clk 0:00:10]} 59. Be3 {[%clk 0:00:16]}  Nc4 {[%clk 0:00:09]} 60. Bd4 {[%clk 0:00:17]}  Be6 {[%clk 0:00:06]} 61. Be4 {[%clk 0:00:14]}  Bf7 {[%clk 0:00:05]} 62. f5 {[%clk 0:00:14]}  gxf5 {[%clk 0:00:04]} 63. Bxf5+ {[%clk 0:00:15]}  Be6 {[%clk 0:00:05]} 64. Be4 {[%clk 0:00:15]}  Nd2 {[%clk 0:00:05]} 65. Bd3 {[%clk 0:00:14]}  Nf3 {[%clk 0:00:05]} 66. Be3 {[%clk 0:00:14]}  Ne5 {[%clk 0:00:05]} 67. Be4 {[%clk 0:00:15]}  Nc4 {[%clk 0:00:05]} 68. Bd4 {[%clk 0:00:15]}  Nd2 {[%clk 0:00:04]} 69. Bg2 {[%clk 0:00:15]}  Nb3 {[%clk 0:00:05]} 70. Bc3 {[%clk 0:00:14]}  Nc1 {[%clk 0:00:05]} 71. Be4 {[%clk 0:00:14]}  Na2+ {[%clk 0:00:06]} 72. Ka5 {[%clk 0:00:11]}  Nxc3 {[%clk 0:00:06]} 73. Bd3 {[%clk 0:00:11]}  Nd5 {[%clk 0:00:07]} 74. Be4 {[%clk 0:00:11]}  b4 {[%clk 0:00:06]} 75. Bxd5 {[%clk 0:00:08]}  Bxd5 {[%clk 0:00:07]} 76. Kxb4 {[%clk 0:00:09]}  Ke6 {[%clk 0:00:07]} 77. Kc3 {[%clk 0:00:09]}  Kf5 {[%clk 0:00:08]} 78. Kd4 {[%clk 0:00:09]}  Kf4 {[%clk 0:00:09]} 79. Kc3 {[%clk 0:00:09]}  Kf3 {[%clk 0:00:10]} 80. Kd4 {[%clk 0:00:10]}  Kxf2 {[%clk 0:00:11]} 81. Ke5 {[%clk 0:00:11]}  Ke3 {[%clk 0:00:12]} 82. Kf5 {[%clk 0:00:08]}  Kd4 {[%clk 0:00:13]} 0-1


[Site "https://www.chess.com"]

[Event "Titled Tuesday Blitz May 9 Early 2023"]
[White "Donchenko, Alexander"]
[Black "Saya, Ethan"]
[WhiteFideId "24603295"]
[BlackFideId "26095181"]
[WhiteElo "2554"]
[BlackElo "2164"]
[Result "1-0"]
[Round "04"]
[TimeControl "180+2"]
[Date "2023.05.09"]
[WhiteClock "0:00:26"]
[BlackClock "0:00:22"]

1. d4 {[%clk 0:02:38]}  Nf6 {[%clk 0:02:58]} 2. Nf3 {[%clk 0:02:39]}  d5 {[%clk 0:02:58]} 3. Bf4 {[%clk 0:02:38]}  e6 {[%clk 0:02:58]} 4. e3 {[%clk 0:02:38]}  Bd6 {[%clk 0:02:58]} 5. Ne5 {[%clk 0:02:38]}  Nfd7 {[%clk 0:02:50]} 6. Nd2 {[%clk 0:02:36]}  O-O {[%clk 0:02:43]} 7. Bd3 {[%clk 0:02:34]}  f6 {[%clk 0:02:31]} 8. Qh5 {[%clk 0:02:18]}  g6 {[%clk 0:02:31]} 9. Nxg6 {[%clk 0:01:57]}  Qe8 {[%clk 0:02:27]} 10. Bxd6 {[%clk 0:01:46]}  cxd6 {[%clk 0:02:20]} 11. Nf4 {[%clk 0:01:41]}  Qxh5 {[%clk 0:02:19]} 12. Nxh5 {[%clk 0:01:42]}  Nc6 {[%clk 0:02:16]} 13. Nf4 {[%clk 0:01:41]}  Nb6 {[%clk 0:02:11]} 14. c3 {[%clk 0:01:40]}  e5 {[%clk 0:02:10]} 15. Nh5 {[%clk 0:01:40]}  Be6 {[%clk 0:02:05]} 16. O-O {[%clk 0:01:36]}  Nd7 {[%clk 0:01:59]} 17. Ng3 {[%clk 0:01:34]}  Bf7 {[%clk 0:01:59]} 18. Nf5 {[%clk 0:01:33]}  Bg6 {[%clk 0:01:58]} 19. Bb1 {[%clk 0:01:29]}  Bxf5 {[%clk 0:01:57]} 20. Bxf5 {[%clk 0:01:30]}  Rad8 {[%clk 0:01:56]} 21. Be6+ {[%clk 0:01:30]}  Kg7 {[%clk 0:01:56]} 22. Bxd5 {[%clk 0:01:30]}  Nb6 {[%clk 0:01:57]} 23. Bf3 {[%clk 0:01:29]}  d5 {[%clk 0:01:55]} 24. Be2 {[%clk 0:01:25]}  e4 {[%clk 0:01:53]} 25. c4 {[%clk 0:01:19]}  f5 {[%clk 0:01:52]} 26. c5 {[%clk 0:01:16]}  Nd7 {[%clk 0:01:52]} 27. g3 {[%clk 0:01:17]}  Nf6 {[%clk 0:01:48]} 28. b4 {[%clk 0:01:14]}  Rg8 {[%clk 0:01:43]} 29. b5 {[%clk 0:01:13]}  Ne7 {[%clk 0:01:43]} 30. Rfc1 {[%clk 0:01:11]}  Rdf8 {[%clk 0:01:43]} 31. Nb3 {[%clk 0:01:07]}  Kh8 {[%clk 0:01:41]} 32. Kf1 {[%clk 0:01:07]}  f4 {[%clk 0:01:40]} 33. exf4 {[%clk 0:01:05]}  h5 {[%clk 0:01:34]} 34. h4 {[%clk 0:01:04]}  e3 {[%clk 0:01:34]} 35. Bf3 {[%clk 0:00:54]}  exf2 {[%clk 0:01:31]} 36. Kxf2 {[%clk 0:00:55]}  Nf5 {[%clk 0:01:29]} 37. c6 {[%clk 0:00:50]}  bxc6 {[%clk 0:01:23]} 38. bxc6 {[%clk 0:00:51]}  Nxg3 {[%clk 0:01:23]} 39. c7 {[%clk 0:00:50]}  Nge4+ {[%clk 0:01:19]} 40. Ke3 {[%clk 0:00:50]}  Ng4+ {[%clk 0:01:13]} 41. Bxg4 {[%clk 0:00:48]}  hxg4 {[%clk 0:01:14]} 42. Nc5 {[%clk 0:00:42]}  g3 {[%clk 0:01:11]} 43. Nxe4 {[%clk 0:00:42]}  Re8 {[%clk 0:01:11]} 44. Kf3 {[%clk 0:00:35]}  dxe4+ {[%clk 0:01:11]} 45. Kg2 {[%clk 0:00:35]}  e3 {[%clk 0:01:06]} 46. Rc3 {[%clk 0:00:35]}  e2 {[%clk 0:01:02]} 47. Re1 {[%clk 0:00:35]}  Rc8 {[%clk 0:00:37]} 48. Rxe2 {[%clk 0:00:34]}  Rg7 {[%clk 0:00:38]} 49. Rec2 {[%clk 0:00:33]}  Rd7 {[%clk 0:00:38]} 50. Rc4 {[%clk 0:00:32]}  Kg7 {[%clk 0:00:39]} 51. Kxg3 {[%clk 0:00:33]}  Kf6 {[%clk 0:00:40]} 52. Rc6+ {[%clk 0:00:32]}  Kf5 {[%clk 0:00:39]} 53. Kf3 {[%clk 0:00:24]}  Rd5 {[%clk 0:00:34]} 54. R2c5 {[%clk 0:00:24]}  Rxc5 {[%clk 0:00:34]} 55. Rxc5+ {[%clk 0:00:25]}  Ke6 {[%clk 0:00:34]} 56. h5 {[%clk 0:00:25]}  Kd6 {[%clk 0:00:31]} 57. h6 {[%clk 0:00:26]}  a5 {[%clk 0:00:30]} 58. h7 {[%clk 0:00:26]}  Rh8 {[%clk 0:00:22]} 59. c8=Q {[%clk 0:00:26]} 1-0


[Site "https://www.chess.com"]

[Event "Titled Tuesday Blitz May 9 Early 2023"]
[White "Garv Gaur"]
[Black "Molina, Roberto Junio Brito"]
[WhiteFideId "45030839"]
[BlackFideId "2109450"]
[WhiteElo "2068"]
[BlackElo "2376"]
[Result "1/2-1/2"]
[Round "04"]
[TimeControl "180+2"]
[Date "2023.05.09"]
[WhiteClock "0:00:16"]
[BlackClock "0:00:29"]

1. e4 {[%clk 0:02:59]}  c6 {[%clk 0:02:59]} 2. Nc3 {[%clk 0:02:50]}  d5 {[%clk 0:03:00]} 3. Nf3 {[%clk 0:02:50]}  dxe4 {[%clk 0:03:00]} 4. Nxe4 {[%clk 0:02:49]}  Bg4 {[%clk 0:03:00]} 5. Be2 {[%clk 0:02:44]}  Nd7 {[%clk 0:03:00]} 6. d4 {[%clk 0:02:42]}  Ngf6 {[%clk 0:02:58]} 7. Nxf6+ {[%clk 0:02:40]}  Nxf6 {[%clk 0:02:59]} 8. c3 {[%clk 0:02:40]}  e6 {[%clk 0:02:59]} 9. h3 {[%clk 0:02:39]}  Bh5 {[%clk 0:02:59]} 10. Ne5 {[%clk 0:02:39]}  Bxe2 {[%clk 0:02:59]} 11. Qxe2 {[%clk 0:02:40]}  Be7 {[%clk 0:02:55]} 12. O-O {[%clk 0:02:40]}  O-O {[%clk 0:02:55]} 13. Rd1 {[%clk 0:02:35]}  Rc8 {[%clk 0:02:45]} 14. b3 {[%clk 0:02:27]}  Re8 {[%clk 0:02:45]} 15. Bb2 {[%clk 0:02:25]}  Nd7 {[%clk 0:02:42]} 16. c4 {[%clk 0:02:24]}  Qc7 {[%clk 0:02:41]} 17. Rac1 {[%clk 0:02:15]}  Rcd8 {[%clk 0:02:40]} 18. Qe3 {[%clk 0:02:02]}  a6 {[%clk 0:02:34]} 19. f4 {[%clk 0:01:50]}  Bf8 {[%clk 0:02:23]} 20. Kh1 {[%clk 0:01:47]}  c5 {[%clk 0:02:13]} 21. Nxd7 {[%clk 0:01:40]}  Rxd7 {[%clk 0:02:01]} 22. dxc5 {[%clk 0:01:33]}  Rxd1+ {[%clk 0:01:58]} 23. Rxd1 {[%clk 0:01:34]}  Bxc5 {[%clk 0:01:58]} 24. Qe5 {[%clk 0:01:34]}  Qxe5 {[%clk 0:01:56]} 25. Bxe5 {[%clk 0:01:35]}  f6 {[%clk 0:01:55]} 26. Bc3 {[%clk 0:01:32]}  Kf7 {[%clk 0:01:52]} 27. g3 {[%clk 0:01:27]}  h5 {[%clk 0:01:49]} 28. Kg2 {[%clk 0:01:26]}  Re7 {[%clk 0:01:49]} 29. Kf3 {[%clk 0:01:26]}  Rc7 {[%clk 0:01:48]} 30. Rd8 {[%clk 0:01:21]}  Be7 {[%clk 0:01:46]} 31. Rd3 {[%clk 0:01:19]}  b5 {[%clk 0:01:39]} 32. cxb5 {[%clk 0:00:58]}  axb5 {[%clk 0:01:40]} 33. a4 {[%clk 0:00:58]}  bxa4 {[%clk 0:01:38]} 34. bxa4 {[%clk 0:00:59]}  Rc4 {[%clk 0:01:38]} 35. a5 {[%clk 0:00:58]}  Ra4 {[%clk 0:01:38]} 36. Bd2 {[%clk 0:00:41]}  e5 {[%clk 0:01:35]} 37. fxe5 {[%clk 0:00:39]}  fxe5 {[%clk 0:01:35]} 38. Rd7 {[%clk 0:00:38]}  Ke6 {[%clk 0:01:35]} 39. Rb7 {[%clk 0:00:37]}  e4+ {[%clk 0:01:32]} 40. Ke2 {[%clk 0:00:35]}  Bd6 {[%clk 0:01:28]} 41. Rb6 {[%clk 0:00:32]}  Kd5 {[%clk 0:01:25]} 42. g4 {[%clk 0:00:31]}  hxg4 {[%clk 0:01:25]} 43. hxg4 {[%clk 0:00:32]}  Ra2 {[%clk 0:01:24]} 44. Kd1 {[%clk 0:00:29]}  Bc5 {[%clk 0:01:18]} 45. Rb5 {[%clk 0:00:27]}  Kc4 {[%clk 0:01:18]} 46. Rb1 {[%clk 0:00:20]}  e3 {[%clk 0:01:09]} 47. Rc1+ {[%clk 0:00:20]}  Kd5 {[%clk 0:00:59]} 48. Bc3 {[%clk 0:00:16]}  g6 {[%clk 0:00:43]} 49. Ra1 {[%clk 0:00:15]}  Rg2 {[%clk 0:00:35]} 50. a6 {[%clk 0:00:14]}  Ke4 {[%clk 0:00:29]} 51. a7 {[%clk 0:00:12]}  Rg1+ {[%clk 0:00:21]} 52. Be1 {[%clk 0:00:12]}  Bxa7 {[%clk 0:00:20]} 53. Rxa7 {[%clk 0:00:11]}  Rxg4 {[%clk 0:00:21]} 54. Ra4+ {[%clk 0:00:09]}  Kf3 {[%clk 0:00:21]} 55. Rxg4 {[%clk 0:00:10]}  Kxg4 {[%clk 0:00:22]} 56. Ke2 {[%clk 0:00:11]}  Kf4 {[%clk 0:00:22]} 57. Ba5 {[%clk 0:00:11]}  Ke4 {[%clk 0:00:22]} 58. Bb6 {[%clk 0:00:12]}  g5 {[%clk 0:00:23]} 59. Bxe3 {[%clk 0:00:12]}  g4 {[%clk 0:00:24]} 60. Bg1 {[%clk 0:00:13]}  Kf5 {[%clk 0:00:25]} 61. Kf2 {[%clk 0:00:13]}  Kf4 {[%clk 0:00:26]} 62. Kg2 {[%clk 0:00:14]}  Ke4 {[%clk 0:00:27]} 63. Kg3 {[%clk 0:00:14]}  Kf5 {[%clk 0:00:28]} 64. Be3 {[%clk 0:00:15]}  Ke6 {[%clk 0:00:29]} 65. Kxg4 {[%clk 0:00:16]} 1/2-1/2


[Site "https://www.chess.com"]

[Event "Titled Tuesday Blitz May 9 Early 2023"]
[White "Sokolovsky, Yahli"]
[Black "Manukyan, Sargis V."]
[WhiteFideId "2820242"]
[BlackFideId "13303465"]
[WhiteElo "2389"]
[BlackElo "2236"]
[Result "1-0"]
[Round "04"]
[TimeControl "180+2"]
[Date "2023.05.09"]
[WhiteClock "0:00:04"]
[BlackClock "0:00:00"]

1. b3 {[%clk 0:03:00]}  Nf6 {[%clk 0:02:48]} 2. Bb2 {[%clk 0:03:01]}  a5 {[%clk 0:02:47]} 3. c4 {[%clk 0:02:56]}  d6 {[%clk 0:02:26]} 4. Nc3 {[%clk 0:02:55]}  e5 {[%clk 0:02:25]} 5. g3 {[%clk 0:02:54]}  Nc6 {[%clk 0:02:25]} 6. Bg2 {[%clk 0:02:55]}  g6 {[%clk 0:02:24]} 7. Nf3 {[%clk 0:02:52]}  Bg7 {[%clk 0:02:24]} 8. d4 {[%clk 0:02:53]}  O-O {[%clk 0:02:17]} 9. O-O {[%clk 0:02:43]}  Re8 {[%clk 0:02:05]} 10. d5 {[%clk 0:02:41]}  Ne7 {[%clk 0:02:01]} 11. e4 {[%clk 0:02:42]}  a4 {[%clk 0:01:44]} 12. Nxa4 {[%clk 0:01:54]}  Nxe4 {[%clk 0:01:31]} 13. Nxe5 {[%clk 0:01:54]}  Nxf2 {[%clk 0:01:17]} 14. Qf3 {[%clk 0:01:11]}  dxe5 {[%clk 0:01:02]} 15. Qxf2 {[%clk 0:01:09]}  f5 {[%clk 0:00:57]} 16. Rae1 {[%clk 0:01:07]}  e4 {[%clk 0:00:39]} 17. Bxg7 {[%clk 0:00:56]}  Kxg7 {[%clk 0:00:39]} 18. Bxe4 {[%clk 0:00:54]}  fxe4 {[%clk 0:00:33]} 19. Qf7+ {[%clk 0:00:54]}  Kh8 {[%clk 0:00:32]} 20. Rxe4 {[%clk 0:00:38]}  Bf5 {[%clk 0:00:31]} 21. Rh4 {[%clk 0:00:38]}  h5 {[%clk 0:00:25]} 22. Qf6+ {[%clk 0:00:35]}  Kg8 {[%clk 0:00:15]} 23. Nc5 {[%clk 0:00:16]}  Nxd5 {[%clk 0:00:11]} 24. Qxd8 {[%clk 0:00:15]}  Raxd8 {[%clk 0:00:11]} 25. cxd5 {[%clk 0:00:15]}  Rxd5 {[%clk 0:00:11]} 26. Rc4 {[%clk 0:00:11]}  Rd2 {[%clk 0:00:10]} 27. Rf2 {[%clk 0:00:11]}  Rd1+ {[%clk 0:00:07]} 28. Kg2 {[%clk 0:00:11]}  Ree1 {[%clk 0:00:06]} 29. Nxb7 {[%clk 0:00:06]}  Be4+ {[%clk 0:00:05]} 30. Kh3 {[%clk 0:00:04]}  Bxb7 {[%clk 0:00:00]} 31. Rxc7 {[%clk 0:00:04]} 1-0


[Site "https://www.chess.com"]

[Event "Titled Tuesday Blitz May 9 Early 2023"]
[White "Csonka, Balazs"]
[Black "Erzhanov, Arman"]
[WhiteFideId "742910"]
[BlackFideId "4138821"]
[WhiteElo "2404"]
[BlackElo "2138"]
[Result "1-0"]
[Round "04"]
[TimeControl "180+2"]
[Date "2023.05.09"]
[WhiteClock "0:00:06"]
[BlackClock "0:00:06"]

1. e4 {[%clk 0:03:00]}  d6 {[%clk 0:02:59]} 2. d4 {[%clk 0:02:56]}  Nf6 {[%clk 0:02:59]} 3. Nc3 {[%clk 0:02:57]}  c6 {[%clk 0:02:58]} 4. f3 {[%clk 0:02:47]}  e5 {[%clk 0:02:56]} 5. Nge2 {[%clk 0:02:43]}  b5 {[%clk 0:02:54]} 6. Be3 {[%clk 0:02:37]}  Be7 {[%clk 0:02:54]} 7. a3 {[%clk 0:02:27]}  O-O {[%clk 0:02:38]} 8. Qd2 {[%clk 0:02:20]}  Nbd7 {[%clk 0:02:35]} 9. d5 {[%clk 0:02:12]}  Bb7 {[%clk 0:02:33]} 10. dxc6 {[%clk 0:02:09]}  Bxc6 {[%clk 0:02:34]} 11. Ng3 {[%clk 0:02:10]}  a6 {[%clk 0:02:26]} 12. Nf5 {[%clk 0:02:03]}  Ne8 {[%clk 0:01:57]} 13. O-O-O {[%clk 0:01:56]}  Ndf6 {[%clk 0:01:33]} 14. g4 {[%clk 0:01:47]}  Bd7 {[%clk 0:01:30]} 15. Nxe7+ {[%clk 0:01:28]}  Qxe7 {[%clk 0:01:30]} 16. h4 {[%clk 0:01:29]}  Rc8 {[%clk 0:01:26]} 17. h5 {[%clk 0:01:26]}  Be6 {[%clk 0:01:19]} 18. g5 {[%clk 0:01:22]}  Nd7 {[%clk 0:01:19]} 19. Nd5 {[%clk 0:01:09]}  Bxd5 {[%clk 0:01:16]} 20. Qxd5 {[%clk 0:01:10]}  Nc5 {[%clk 0:00:59]} 21. Bh3 {[%clk 0:01:03]}  Rc7 {[%clk 0:00:58]} 22. Kb1 {[%clk 0:01:00]}  Ne6 {[%clk 0:00:30]} 23. g6 {[%clk 0:00:57]}  Nf4 {[%clk 0:00:25]} 24. Bxf4 {[%clk 0:00:54]}  exf4 {[%clk 0:00:24]} 25. gxf7+ {[%clk 0:00:51]}  Rxf7 {[%clk 0:00:24]} 26. Be6 {[%clk 0:00:50]}  Nf6 {[%clk 0:00:21]} 27. Qxd6 {[%clk 0:00:47]}  Qxd6 {[%clk 0:00:17]} 28. Rxd6 {[%clk 0:00:48]}  Kf8 {[%clk 0:00:15]} 29. Bxf7 {[%clk 0:00:45]}  Kxf7 {[%clk 0:00:15]} 30. Rxa6 {[%clk 0:00:44]}  Nd7 {[%clk 0:00:13]} 31. Ra5 {[%clk 0:00:28]}  Rb7 {[%clk 0:00:12]} 32. Rd1 {[%clk 0:00:24]}  Ne5 {[%clk 0:00:12]} 33. a4 {[%clk 0:00:24]}  Nxf3 {[%clk 0:00:12]} 34. Rxb5 {[%clk 0:00:24]}  Re7 {[%clk 0:00:12]} 35. Rf5+ {[%clk 0:00:19]}  Ke6 {[%clk 0:00:11]} 36. Rxf4 {[%clk 0:00:20]}  Ne5 {[%clk 0:00:12]} 37. b3 {[%clk 0:00:19]}  Rc7 {[%clk 0:00:11]} 38. Rd5 {[%clk 0:00:17]}  g6 {[%clk 0:00:09]} 39. hxg6 {[%clk 0:00:16]}  hxg6 {[%clk 0:00:10]} 40. Kb2 {[%clk 0:00:16]}  Rh7 {[%clk 0:00:10]} 41. a5 {[%clk 0:00:14]}  Ra7 {[%clk 0:00:10]} 42. b4 {[%clk 0:00:11]}  Nc6 {[%clk 0:00:10]} 43. c3 {[%clk 0:00:10]}  Ne7 {[%clk 0:00:09]} 44. Rc5 {[%clk 0:00:10]}  Rd7 {[%clk 0:00:08]} 45. Kb3 {[%clk 0:00:10]}  Rd1 {[%clk 0:00:07]} 46. a6 {[%clk 0:00:10]}  Rb1+ {[%clk 0:00:08]} 47. Ka2 {[%clk 0:00:09]}  Rd1 {[%clk 0:00:08]} 48. a7 {[%clk 0:00:09]}  Rd8 {[%clk 0:00:09]} 49. b5 {[%clk 0:00:09]}  Kd6 {[%clk 0:00:06]} 50. Rc4 {[%clk 0:00:06]}  Ra8 {[%clk 0:00:05]} 51. b6 {[%clk 0:00:06]}  Nc6 {[%clk 0:00:06]} 52. Rf6+ {[%clk 0:00:06]}  Ke5 {[%clk 0:00:06]} 53. Rcxc6 {[%clk 0:00:07]}  Kxe4 {[%clk 0:00:06]} 54. Rxg6 {[%clk 0:00:07]}  Kd5 {[%clk 0:00:06]} 55. Kb3 {[%clk 0:00:07]}  Re8 {[%clk 0:00:06]} 56. c4+ {[%clk 0:00:07]}  Kd4 {[%clk 0:00:06]} 57. Rcd6+ {[%clk 0:00:07]}  Kc5 {[%clk 0:00:06]} 58. Rd5# {[%clk 0:00:06]} 1-0


[Site "https://www.chess.com"]

[Event "Titled Tuesday Blitz May 9 Early 2023"]
[White "Mortazavi, Ali"]
[Black "Bazeev, German"]
[WhiteFideId "401323"]
[BlackFideId "24119350"]
[WhiteElo "2339"]
[BlackElo "2466"]
[Result "1-0"]
[Round "04"]
[TimeControl "180+2"]
[Date "2023.05.09"]
[WhiteClock "0:00:03"]
[BlackClock "0:00:00"]

1. Nf3 {[%clk 0:02:54]}  d5 {[%clk 0:03:00]} 2. g3 {[%clk 0:02:53]}  Nf6 {[%clk 0:03:00]} 3. Bg2 {[%clk 0:02:49]}  c6 {[%clk 0:03:01]} 4. O-O {[%clk 0:02:48]}  Bg4 {[%clk 0:03:01]} 5. d3 {[%clk 0:02:48]}  Nbd7 {[%clk 0:03:02]} 6. c4 {[%clk 0:02:47]}  e6 {[%clk 0:02:59]} 7. Be3 {[%clk 0:02:46]}  Be7 {[%clk 0:02:53]} 8. Qb3 {[%clk 0:02:46]}  Bxf3 {[%clk 0:02:36]} 9. Bxf3 {[%clk 0:02:45]}  O-O {[%clk 0:02:28]} 10. Bg2 {[%clk 0:02:31]}  Bc5 {[%clk 0:02:15]} 11. d4 {[%clk 0:02:20]}  Bb6 {[%clk 0:01:54]} 12. Nc3 {[%clk 0:02:18]}  Rb8 {[%clk 0:01:46]} 13. Rfd1 {[%clk 0:02:10]}  Bc7 {[%clk 0:01:44]} 14. Rac1 {[%clk 0:02:00]}  a6 {[%clk 0:01:44]} 15. Bg5 {[%clk 0:01:13]}  h6 {[%clk 0:01:35]} 16. Bxf6 {[%clk 0:01:13]}  Nxf6 {[%clk 0:01:35]} 17. e4 {[%clk 0:01:14]}  dxe4 {[%clk 0:00:38]} 18. Nxe4 {[%clk 0:01:13]}  Nxe4 {[%clk 0:00:39]} 19. Bxe4 {[%clk 0:01:13]}  Qf6 {[%clk 0:00:40]} 20. d5 {[%clk 0:01:09]}  cxd5 {[%clk 0:00:38]} 21. cxd5 {[%clk 0:01:09]}  exd5 {[%clk 0:00:38]} 22. Rxd5 {[%clk 0:00:59]}  Be5 {[%clk 0:00:35]} 23. Rd2 {[%clk 0:00:34]}  Rfd8 {[%clk 0:00:20]} 24. Rcd1 {[%clk 0:00:34]}  Rxd2 {[%clk 0:00:18]} 25. Rxd2 {[%clk 0:00:34]}  b5 {[%clk 0:00:18]} 26. Qc2 {[%clk 0:00:23]}  b4 {[%clk 0:00:14]} 27. Kg2 {[%clk 0:00:22]}  a5 {[%clk 0:00:13]} 28. b3 {[%clk 0:00:20]}  Bc3 {[%clk 0:00:14]} 29. Rd5 {[%clk 0:00:21]}  Re8 {[%clk 0:00:12]} 30. Rxa5 {[%clk 0:00:19]}  Qd4 {[%clk 0:00:12]} 31. Bf3 {[%clk 0:00:16]}  g6 {[%clk 0:00:11]} 32. Rd5 {[%clk 0:00:15]}  Qf6 {[%clk 0:00:11]} 33. Qd3 {[%clk 0:00:15]}  Kg7 {[%clk 0:00:11]} 34. Rd7 {[%clk 0:00:15]}  Re7 {[%clk 0:00:07]} 35. Rd8 {[%clk 0:00:15]}  Rc7 {[%clk 0:00:05]} 36. Ra8 {[%clk 0:00:13]}  Be5 {[%clk 0:00:05]} 37. Qb5 {[%clk 0:00:10]}  Kh7 {[%clk 0:00:02]} 38. Qe8 {[%clk 0:00:10]}  Qg7 {[%clk 0:00:03]} 39. h4 {[%clk 0:00:08]}  h5 {[%clk 0:00:03]} 40. Be4 {[%clk 0:00:08]}  Bd4 {[%clk 0:00:03]} 41. Qb5 {[%clk 0:00:06]}  Rc2 {[%clk 0:00:04]} 42. Qxh5+ {[%clk 0:00:06]}  Qh6 {[%clk 0:00:03]} 43. Qd5 {[%clk 0:00:03]}  Rxf2+ {[%clk 0:00:03]} 44. Kh3 {[%clk 0:00:04]}  Qg7 {[%clk 0:00:03]} 45. Rd8 {[%clk 0:00:02]}  Be5 {[%clk 0:00:03]} 46. Rd7 {[%clk 0:00:03]}  Bc3 {[%clk 0:00:00]} 47. h5 {[%clk 0:00:03]} 1-0


[Site "https://www.chess.com"]